[Event "Titled Tuesday Blitz June 21 Late 2022"]
[White "Navarrete Mendez, Gonzalo Alberto"]
[Black "Ibarra Jerez, Jose Carlos"]
[WhiteFideId "5106850"]
[BlackFideId "2226332"]
[WhiteElo "2261"]
[BlackElo "2628"]
[Result "0-1"]
[Round "06"]
[TimeControl "180+1"]
[Date "2022.06.21"]
[WhiteClock "0:00:08"]
[BlackClock "0:00:39"]

1. e4 {[%clk 0:02:58]}  c5 {[%clk 0:03:00]} 2. Nf3 {[%clk 0:02:57]}  e6 {[%clk 0:03:01]} 3. Nc3 {[%clk 0:02:57]}  a6 {[%clk 0:03:01]} 4. d4 {[%clk 0:02:57]}  cxd4 {[%clk 0:03:01]} 5. Nxd4 {[%clk 0:02:57]}  b5 {[%clk 0:03:02]} 6. g3 {[%clk 0:02:58]}  Bb7 {[%clk 0:03:02]} 7. Bg2 {[%clk 0:02:58]}  Ne7 {[%clk 0:03:03]} 8. O-O {[%clk 0:02:57]}  Nec6 {[%clk 0:03:02]} 9. Nb3 {[%clk 0:02:56]}  d6 {[%clk 0:03:01]} 10. f4 {[%clk 0:02:55]}  Be7 {[%clk 0:03:01]} 11. Qg4 {[%clk 0:02:47]}  O-O {[%clk 0:03:01]} 12. f5 {[%clk 0:02:47]}  Ne5 {[%clk 0:03:01]} 13. Qh3 {[%clk 0:02:44]}  Bc8 {[%clk 0:02:55]} 14. Be3 {[%clk 0:02:33]}  Nbc6 {[%clk 0:02:54]} 15. Rad1 {[%clk 0:02:21]}  Nc4 {[%clk 0:02:54]} 16. Bc1 {[%clk 0:02:17]}  Qb6+ {[%clk 0:02:55]} 17. Kh1 {[%clk 0:02:16]}  Bf6 {[%clk 0:02:55]} 18. g4 {[%clk 0:02:12]}  Qd8 {[%clk 0:02:39]} 19. e5 {[%clk 0:01:53]}  N4xe5 {[%clk 0:02:39]} 20. Ne4 {[%clk 0:01:53]}  d5 {[%clk 0:02:15]} 21. g5 {[%clk 0:01:34]}  exf5 {[%clk 0:01:52]} 22. Rxd5 {[%clk 0:01:28]}  fxe4 {[%clk 0:01:50]} 23. Rxd8 {[%clk 0:01:21]}  Bxh3 {[%clk 0:01:48]} 24. Rxf8+ {[%clk 0:01:20]}  Rxf8 {[%clk 0:01:46]} 25. Bxh3 {[%clk 0:01:20]}  Be7 {[%clk 0:01:41]} 26. Re1 {[%clk 0:01:10]}  Nf3 {[%clk 0:01:33]} 27. Rxe4 {[%clk 0:00:58]}  Bxg5 {[%clk 0:01:34]} 28. Bg2 {[%clk 0:00:46]}  Bxc1 {[%clk 0:01:30]} 29. Nxc1 {[%clk 0:00:47]}  Nfd4 {[%clk 0:01:25]} 30. c3 {[%clk 0:00:38]}  Ne6 {[%clk 0:01:25]} 31. Nb3 {[%clk 0:00:31]}  Rc8 {[%clk 0:01:14]} 32. a4 {[%clk 0:00:29]}  g6 {[%clk 0:00:53]} 33. Rh4 {[%clk 0:00:17]}  Ne5 {[%clk 0:00:46]} 34. axb5 {[%clk 0:00:14]}  axb5 {[%clk 0:00:47]} 35. Rb4 {[%clk 0:00:14]}  Nd3 {[%clk 0:00:47]} 36. Rxb5 {[%clk 0:00:14]}  Nxb2 {[%clk 0:00:48]} 37. Nd4 {[%clk 0:00:12]}  Nxd4 {[%clk 0:00:42]} 38. cxd4 {[%clk 0:00:13]}  Rc1+ {[%clk 0:00:42]} 39. Bf1 {[%clk 0:00:13]}  Rxf1+ {[%clk 0:00:43]} 40. Kg2 {[%clk 0:00:12]}  Rd1 {[%clk 0:00:36]} 41. Rxb2 {[%clk 0:00:09]}  Rxd4 {[%clk 0:00:37]} 42. Kg3 {[%clk 0:00:09]}  Kg7 {[%clk 0:00:37]} 43. h3 {[%clk 0:00:09]}  h5 {[%clk 0:00:37]} 44. Rf2 {[%clk 0:00:08]}  g5 {[%clk 0:00:36]} 45. Ra2 {[%clk 0:00:07]}  Kg6 {[%clk 0:00:37]} 46. Kg2 {[%clk 0:00:08]}  f6 {[%clk 0:00:37]} 47. Rb2 {[%clk 0:00:07]}  Rd3 {[%clk 0:00:38]} 48. Kh2 {[%clk 0:00:07]}  g4 {[%clk 0:00:38]} 49. hxg4 {[%clk 0:00:07]}  hxg4 {[%clk 0:00:39]} 50. Kg2 {[%clk 0:00:08]}  f5 {[%clk 0:00:39]} 51. Rb8 {[%clk 0:00:08]}  Kg5 {[%clk 0:00:40]} 52. Rg8+ {[%clk 0:00:07]}  Kf4 {[%clk 0:00:40]} 53. Rd8 {[%clk 0:00:08]}  Rxd8 {[%clk 0:00:39]} 0-1


[Site "https://www.chess.com"]

[Event "Titled Tuesday Blitz June 21 Late 2022"]
[White "Novikova, Galina"]
[Black "Koellner, Ruben Gideon"]
[WhiteFideId "4157095"]
[BlackFideId "12993093"]
[WhiteElo "1863"]
[BlackElo "2551"]
[Result "0-1"]
[Round "06"]
[TimeControl "180+1"]
[Date "2022.06.22"]
[WhiteClock "0:00:04"]
[BlackClock "0:00:35"]

1. e4 {[%clk 0:03:00]}  d6 {[%clk 0:03:00]} 2. d4 {[%clk 0:03:00]}  Nf6 {[%clk 0:03:00]} 3. Nc3 {[%clk 0:03:00]}  e5 {[%clk 0:03:00]} 4. f3 {[%clk 0:03:00]}  exd4 {[%clk 0:02:57]} 5. Qxd4 {[%clk 0:03:01]}  Nc6 {[%clk 0:02:57]} 6. Qd1 {[%clk 0:03:01]}  Be6 {[%clk 0:02:56]} 7. Be3 {[%clk 0:03:02]}  d5 {[%clk 0:02:55]} 8. Bb5 {[%clk 0:02:55]}  dxe4 {[%clk 0:02:53]} 9. Qxd8+ {[%clk 0:02:52]}  Rxd8 {[%clk 0:02:54]} 10. Bxc6+ {[%clk 0:02:48]}  bxc6 {[%clk 0:02:55]} 11. Nxe4 {[%clk 0:02:48]}  Nxe4 {[%clk 0:02:54]} 12. fxe4 {[%clk 0:02:49]}  a6 {[%clk 0:02:53]} 13. Nf3 {[%clk 0:02:49]}  Bb4+ {[%clk 0:02:50]} 14. c3 {[%clk 0:02:48]}  Be7 {[%clk 0:02:50]} 15. O-O {[%clk 0:02:46]}  c5 {[%clk 0:02:48]} 16. b3 {[%clk 0:02:32]}  Rd3 {[%clk 0:02:38]} 17. Bd2 {[%clk 0:02:20]}  c4 {[%clk 0:02:27]} 18. b4 {[%clk 0:02:12]}  Bg4 {[%clk 0:02:03]} 19. Rf2 {[%clk 0:01:19]}  Bxf3 {[%clk 0:01:49]} 20. gxf3 {[%clk 0:01:20]}  Bf6 {[%clk 0:01:49]} 21. Rc1 {[%clk 0:01:14]}  Kd7 {[%clk 0:01:44]} 22. Rc2 {[%clk 0:01:09]}  c5 {[%clk 0:01:33]} 23. a3 {[%clk 0:00:59]}  Kc6 {[%clk 0:01:31]} 24. Kg2 {[%clk 0:00:55]}  Rhd8 {[%clk 0:01:29]} 25. f4 {[%clk 0:00:52]}  Kb5 {[%clk 0:01:17]} 26. e5 {[%clk 0:00:52]}  Bh4 {[%clk 0:01:13]} 27. Re2 {[%clk 0:00:46]}  Ka4 {[%clk 0:01:09]} 28. bxc5 {[%clk 0:00:42]}  Kb3 {[%clk 0:01:02]} 29. Be3 {[%clk 0:00:32]}  Rxe3 {[%clk 0:00:52]} 30. Rb2+ {[%clk 0:00:31]}  Kxc3 {[%clk 0:00:52]} 31. Rbc2+ {[%clk 0:00:27]}  Kd4 {[%clk 0:00:52]} 32. Rxc4+ {[%clk 0:00:10]}  Kxc4 {[%clk 0:00:48]} 33. Rxe3 {[%clk 0:00:11]}  Kxc5 {[%clk 0:00:41]} 34. Rh3 {[%clk 0:00:11]}  Rd2+ {[%clk 0:00:37]} 35. Kf1 {[%clk 0:00:09]}  Rf2+ {[%clk 0:00:36]} 36. Kg1 {[%clk 0:00:06]}  Rxf4 {[%clk 0:00:36]} 37. Rc3+ {[%clk 0:00:06]}  Kd5 {[%clk 0:00:36]} 38. Rc7 {[%clk 0:00:06]}  Kxe5 {[%clk 0:00:36]} 39. Ra7 {[%clk 0:00:05]}  Ra4 {[%clk 0:00:36]} 40. Re7+ {[%clk 0:00:04]}  Bxe7 {[%clk 0:00:35]} 0-1


[Site "https://www.chess.com"]

[Event "Titled Tuesday Blitz June 21 Late 2022"]
[White "Omariev, Maksim"]
[Black "Kanyamarala, Trisha"]
[WhiteFideId "4193423"]
[BlackFideId "45004722"]
[WhiteElo "2475"]
[BlackElo "2134"]
[Result "1-0"]
[Round "06"]
[TimeControl "180+1"]
[Date "2022.06.22"]
[WhiteClock "0:00:12"]
[BlackClock "0:00:02"]

1. g4 {[%clk 0:03:00]}  e5 {[%clk 0:02:56]} 2. Bg2 {[%clk 0:03:00]}  d5 {[%clk 0:02:54]} 3. h3 {[%clk 0:03:01]}  Nf6 {[%clk 0:02:51]} 4. d4 {[%clk 0:03:01]}  e4 {[%clk 0:02:50]} 5. c4 {[%clk 0:03:01]}  c6 {[%clk 0:02:50]} 6. Nc3 {[%clk 0:03:01]}  Bd6 {[%clk 0:02:50]} 7. Bg5 {[%clk 0:03:01]}  h6 {[%clk 0:02:48]} 8. Bxf6 {[%clk 0:03:01]}  Qxf6 {[%clk 0:02:46]} 9. cxd5 {[%clk 0:03:02]}  cxd5 {[%clk 0:02:45]} 10. Nxd5 {[%clk 0:03:03]}  Qe6 {[%clk 0:02:42]} 11. Nc3 {[%clk 0:03:02]}  e3 {[%clk 0:02:39]} 12. fxe3 {[%clk 0:02:51]}  Qxe3 {[%clk 0:02:30]} 13. Qd3 {[%clk 0:02:29]}  Bg3+ {[%clk 0:02:14]} 14. Kd1 {[%clk 0:02:28]}  Qxd3+ {[%clk 0:01:48]} 15. exd3 {[%clk 0:02:29]}  O-O {[%clk 0:01:44]} 16. Nge2 {[%clk 0:02:30]}  Bd6 {[%clk 0:01:43]} 17. Nb5 {[%clk 0:02:23]}  Rd8 {[%clk 0:01:38]} 18. Rc1 {[%clk 0:02:20]}  Nc6 {[%clk 0:01:37]} 19. Bxc6 {[%clk 0:02:07]}  bxc6 {[%clk 0:01:37]} 20. Nxd6 {[%clk 0:02:08]}  Rxd6 {[%clk 0:01:37]} 21. Kd2 {[%clk 0:02:07]}  Be6 {[%clk 0:01:34]} 22. a3 {[%clk 0:02:02]}  a5 {[%clk 0:01:34]} 23. Rc5 {[%clk 0:01:59]}  Rb8 {[%clk 0:01:32]} 24. Kc2 {[%clk 0:01:53]}  a4 {[%clk 0:01:27]} 25. Rf1 {[%clk 0:01:31]}  Rd7 {[%clk 0:01:15]} 26. Rxc6 {[%clk 0:01:01]}  Rdb7 {[%clk 0:01:14]} 27. b4 {[%clk 0:01:02]}  axb3+ {[%clk 0:01:12]} 28. Kb2 {[%clk 0:01:02]}  Rd8 {[%clk 0:00:59]} 29. Rfc1 {[%clk 0:01:02]}  Ra7 {[%clk 0:00:49]} 30. R1c5 {[%clk 0:00:59]}  Kh7 {[%clk 0:00:26]} 31. Rc7 {[%clk 0:00:53]}  Ra4 {[%clk 0:00:25]} 32. Rb7 {[%clk 0:00:39]}  Bd5 {[%clk 0:00:17]} 33. Rb4 {[%clk 0:00:33]}  Ra7 {[%clk 0:00:09]} 34. Nc3 {[%clk 0:00:29]}  Be6 {[%clk 0:00:09]} 35. d5 {[%clk 0:00:29]}  Bd7 {[%clk 0:00:09]} 36. Kxb3 {[%clk 0:00:29]}  Be8 {[%clk 0:00:08]} 37. a4 {[%clk 0:00:29]}  f6 {[%clk 0:00:08]} 38. a5 {[%clk 0:00:29]}  Bf7 {[%clk 0:00:08]} 39. Kc4 {[%clk 0:00:27]}  Rda8 {[%clk 0:00:08]} 40. Ra4 {[%clk 0:00:27]}  Be8 {[%clk 0:00:07]} 41. Ra3 {[%clk 0:00:27]}  Ra6 {[%clk 0:00:07]} 42. Kd4 {[%clk 0:00:26]}  Bf7 {[%clk 0:00:07]} 43. Nb5 {[%clk 0:00:24]}  Rd8 {[%clk 0:00:07]} 44. Nc7 {[%clk 0:00:23]}  Rad6 {[%clk 0:00:07]} 45. a6 {[%clk 0:00:22]}  R6d7 {[%clk 0:00:05]} 46. a7 {[%clk 0:00:21]}  Bxd5 {[%clk 0:00:03]} 47. Nxd5 {[%clk 0:00:20]}  Ra8 {[%clk 0:00:03]} 48. Rca5 {[%clk 0:00:17]}  Kg8 {[%clk 0:00:02]} 49. Ke4 {[%clk 0:00:15]}  Kf7 {[%clk 0:00:01]} 50. Nb6 {[%clk 0:00:15]}  Re7+ {[%clk 0:00:02]} 51. Kf4 {[%clk 0:00:15]}  g5+ {[%clk 0:00:02]} 52. Kf3 {[%clk 0:00:16]}  Rae8 {[%clk 0:00:01]} 53. a8=Q {[%clk 0:00:16]}  Re3+ {[%clk 0:00:01]} 54. Kf2 {[%clk 0:00:13]}  Re2+ {[%clk 0:00:02]} 55. Kg1 {[%clk 0:00:12]}  Re1+ {[%clk 0:00:02]} 56. Kh2 {[%clk 0:00:12]} 1-0


[Site "https://www.chess.com"]

[Event "Titled Tuesday Blitz June 21 Late 2022"]
[White "Pakleza, Zbigniew"]
[Black "Sernecki, Franciszek"]
[WhiteFideId "1119290"]
[BlackFideId "1169297"]
[WhiteElo "2467"]
[BlackElo "2168"]
[Result "1-0"]
[Round "06"]
[TimeControl "180+1"]
[Date "2022.06.21"]
[WhiteClock "0:00:53"]
[BlackClock "0:00:02"]

1. d4 {[%clk 0:03:00]}  Nf6 {[%clk 0:02:45]} 2. Nf3 {[%clk 0:03:00]}  e6 {[%clk 0:02:44]} 3. Bf4 {[%clk 0:03:01]}  c5 {[%clk 0:02:35]} 4. c3 {[%clk 0:03:00]}  Nc6 {[%clk 0:02:23]} 5. e3 {[%clk 0:03:00]}  d5 {[%clk 0:02:20]} 6. Nbd2 {[%clk 0:03:00]}  Bd6 {[%clk 0:02:20]} 7. Bg3 {[%clk 0:03:00]}  Qe7 {[%clk 0:02:19]} 8. Ne5 {[%clk 0:03:00]}  Nd7 {[%clk 0:02:17]} 9. f4 {[%clk 0:02:56]}  O-O {[%clk 0:02:13]} 10. Bd3 {[%clk 0:02:51]}  f6 {[%clk 0:02:12]} 11. Qh5 {[%clk 0:02:15]}  g6 {[%clk 0:01:59]} 12. Nxg6 {[%clk 0:02:15]}  hxg6 {[%clk 0:01:48]} 13. Bxg6 {[%clk 0:02:16]}  Qg7 {[%clk 0:01:29]} 14. f5 {[%clk 0:02:09]}  e5 {[%clk 0:01:25]} 15. O-O-O {[%clk 0:01:55]}  cxd4 {[%clk 0:01:10]} 16. exd4 {[%clk 0:01:53]}  b6 {[%clk 0:01:08]} 17. Nf3 {[%clk 0:01:45]}  Bb7 {[%clk 0:01:03]} 18. dxe5 {[%clk 0:01:45]}  Ncxe5 {[%clk 0:01:03]} 19. Nd4 {[%clk 0:01:45]}  Nc5 {[%clk 0:00:57]} 20. Kb1 {[%clk 0:01:40]}  a5 {[%clk 0:00:54]} 21. Bf4 {[%clk 0:01:30]}  Nf7 {[%clk 0:00:31]} 22. Bxf7+ {[%clk 0:01:22]}  Qxf7 {[%clk 0:00:30]} 23. Qxf7+ {[%clk 0:01:22]}  Rxf7 {[%clk 0:00:31]} 24. Bxd6 {[%clk 0:01:23]}  Ne4 {[%clk 0:00:31]} 25. Bg3 {[%clk 0:01:19]}  Rg7 {[%clk 0:00:31]} 26. Ne6 {[%clk 0:01:16]}  Rg4 {[%clk 0:00:30]} 27. Rd4 {[%clk 0:01:07]}  Re8 {[%clk 0:00:21]} 28. Rhd1 {[%clk 0:01:02]}  Bc8 {[%clk 0:00:17]} 29. Nc7 {[%clk 0:00:54]}  Rf8 {[%clk 0:00:15]} 30. Nxd5 {[%clk 0:00:55]}  Bxf5 {[%clk 0:00:15]} 31. Ne7+ {[%clk 0:00:55]}  Kh8 {[%clk 0:00:08]} 32. Nxf5 {[%clk 0:00:56]}  Nxc3+ {[%clk 0:00:05]} 33. bxc3 {[%clk 0:00:56]}  Rf4 {[%clk 0:00:06]} 34. Rxf4 {[%clk 0:00:55]}  Rd8 {[%clk 0:00:07]} 35. Rxd8+ {[%clk 0:00:55]}  Kh7 {[%clk 0:00:08]} 36. Rg4 {[%clk 0:00:52]}  a4 {[%clk 0:00:02]} 37. Rg7# {[%clk 0:00:53]} 1-0


[Site "https://www.chess.com"]

[Event "Titled Tuesday Blitz June 21 Late 2022"]
[White "Pappelis, Dimitrios"]
[Black "Dauner, Benedikt"]
[WhiteFideId "4215281"]
[BlackFideId "16225899"]
[WhiteElo "1998"]
[BlackElo "2230"]
[Result "1-0"]
[Round "06"]
[TimeControl "180+1"]
[Date "2022.06.22"]
[WhiteClock "0:01:57"]
[BlackClock "0:02:28"]

1. d4 {[%clk 0:03:00]}  b6 {[%clk 0:03:00]} 2. e4 {[%clk 0:02:59]}  Bb7 {[%clk 0:03:01]} 3. Bd3 {[%clk 0:02:59]}  Nf6 {[%clk 0:03:01]} 4. Nd2 {[%clk 0:02:57]}  e6 {[%clk 0:03:00]} 5. Ngf3 {[%clk 0:02:56]}  Nc6 {[%clk 0:03:00]} 6. c3 {[%clk 0:02:56]}  d5 {[%clk 0:03:00]} 7. e5 {[%clk 0:02:54]}  Nd7 {[%clk 0:03:00]} 8. O-O {[%clk 0:02:54]}  Be7 {[%clk 0:03:00]} 9. Re1 {[%clk 0:02:53]}  a5 {[%clk 0:03:00]} 10. Nf1 {[%clk 0:02:53]}  Qc8 {[%clk 0:02:59]} 11. Bg5 {[%clk 0:02:45]}  h6 {[%clk 0:02:57]} 12. Bxe7 {[%clk 0:02:44]}  Nxe7 {[%clk 0:02:58]} 13. Rc1 {[%clk 0:02:43]}  Ba6 {[%clk 0:02:57]} 14. Bb1 {[%clk 0:02:42]}  Qb7 {[%clk 0:02:56]} 15. Ne3 {[%clk 0:02:41]}  c5 {[%clk 0:02:56]} 16. a3 {[%clk 0:02:34]}  Bb5 {[%clk 0:02:50]} 17. b4 {[%clk 0:02:31]}  c4 {[%clk 0:02:45]} 18. a4 {[%clk 0:02:26]}  axb4 {[%clk 0:02:40]} 19. axb5 {[%clk 0:02:26]}  b3 {[%clk 0:02:41]} 20. Nd2 {[%clk 0:02:10]}  Ra5 {[%clk 0:02:38]} 21. Ndxc4 {[%clk 0:02:10]}  dxc4 {[%clk 0:02:37]} 22. Nxc4 {[%clk 0:02:10]}  Rxb5 {[%clk 0:02:38]} 23. Nd6+ {[%clk 0:02:10]}  Kd8 {[%clk 0:02:38]} 24. Nxb7+ {[%clk 0:02:10]}  Kc7 {[%clk 0:02:39]} 25. Nd6 {[%clk 0:02:10]}  Ra5 {[%clk 0:02:39]} 26. Qxb3 {[%clk 0:02:09]}  Nd5 {[%clk 0:02:39]} 27. c4 {[%clk 0:02:06]}  Ne7 {[%clk 0:02:38]} 28. c5 {[%clk 0:01:58]}  Nc6 {[%clk 0:02:32]} 29. cxb6+ {[%clk 0:01:58]}  Nxb6 {[%clk 0:02:33]} 30. Be4 {[%clk 0:01:57]}  Nd5 {[%clk 0:02:29]} 31. Bxd5 {[%clk 0:01:57]}  Rxd5 {[%clk 0:02:30]} 32. Qb7+ {[%clk 0:01:57]}  Kd8 {[%clk 0:02:30]} 33. Qxc6 {[%clk 0:01:57]}  Ke7 {[%clk 0:02:29]} 34. Qc7+ {[%clk 0:01:57]}  Kf8 {[%clk 0:02:28]} 35. Qxf7# {[%clk 0:01:57]} 1-0


[Site "https://www.chess.com"]

[Event "Titled Tuesday Blitz June 21 Late 2022"]
[White "Peatman, Carter"]
[Black "Vu, Bui Thi Thanh Van"]
[WhiteFideId "2096480"]
[BlackFideId "12408921"]
[WhiteElo "2466"]
[BlackElo "1602"]
[Result "1-0"]
[Round "06"]
[TimeControl "180+1"]
[Date "2022.06.22"]
[WhiteClock "0:00:31"]
[BlackClock "0:00:42"]

1. d4 {[%clk 0:03:00]}  f5 {[%clk 0:02:58]} 2. Bf4 {[%clk 0:02:53]}  Nf6 {[%clk 0:02:57]} 3. e3 {[%clk 0:02:53]}  e6 {[%clk 0:02:56]} 4. Nf3 {[%clk 0:02:53]}  g6 {[%clk 0:02:57]} 5. c4 {[%clk 0:02:48]}  Bg7 {[%clk 0:02:56]} 6. Nc3 {[%clk 0:02:48]}  d6 {[%clk 0:02:56]} 7. h3 {[%clk 0:02:43]}  O-O {[%clk 0:02:55]} 8. Be2 {[%clk 0:02:43]}  Qe7 {[%clk 0:02:55]} 9. O-O {[%clk 0:02:42]}  Nbd7 {[%clk 0:02:50]} 10. Bh2 {[%clk 0:02:43]}  e5 {[%clk 0:02:50]} 11. b4 {[%clk 0:02:39]}  exd4 {[%clk 0:02:17]} 12. exd4 {[%clk 0:02:19]}  Ne4 {[%clk 0:02:17]} 13. Nd5 {[%clk 0:02:05]}  Qd8 {[%clk 0:02:15]} 14. Qc2 {[%clk 0:01:49]}  Ndf6 {[%clk 0:02:09]} 15. Nxf6+ {[%clk 0:01:33]}  Qxf6 {[%clk 0:02:08]} 16. Rac1 {[%clk 0:01:30]}  Bd7 {[%clk 0:01:48]} 17. Rfd1 {[%clk 0:01:27]}  Rae8 {[%clk 0:01:45]} 18. c5 {[%clk 0:01:26]}  d5 {[%clk 0:01:44]} 19. Bxc7 {[%clk 0:01:25]}  f4 {[%clk 0:01:40]} 20. b5 {[%clk 0:01:18]}  Bf5 {[%clk 0:01:39]} 21. Qa4 {[%clk 0:01:12]}  Nxc5 {[%clk 0:00:58]} 22. dxc5 {[%clk 0:00:56]}  Rxe2 {[%clk 0:00:57]} 23. c6 {[%clk 0:00:42]}  b6 {[%clk 0:00:52]} 24. Qxa7 {[%clk 0:00:41]}  Be4 {[%clk 0:00:52]} 25. Be5 {[%clk 0:00:33]}  Qf7 {[%clk 0:00:43]} 26. Qxf7+ {[%clk 0:00:32]}  Kxf7 {[%clk 0:00:43]} 27. Ng5+ {[%clk 0:00:31]}  Kg8 {[%clk 0:00:42]} 28. Bxg7 {[%clk 0:00:30]}  Kxg7 {[%clk 0:00:41]} 29. Ne6+ {[%clk 0:00:30]}  Kf7 {[%clk 0:00:41]} 30. Nxf8 {[%clk 0:00:30]}  Kxf8 {[%clk 0:00:42]} 31. c7 {[%clk 0:00:31]} 1-0


[Site "https://www.chess.com"]

[Event "Titled Tuesday Blitz June 21 Late 2022"]
[White "Pesotskiy, Mikhail"]
[Black "Aksu, Vedat Ali"]
[WhiteFideId "34164453"]
[BlackFideId "6304320"]
[WhiteElo "2010"]
[BlackElo "2308"]
[Result "1-0"]
[Round "06"]
[TimeControl "180+1"]
[Date "2022.06.22"]
[WhiteClock "0:01:05"]
[BlackClock "0:00:11"]

1. d4 {[%clk 0:02:59]}  Nf6 {[%clk 0:02:59]} 2. c4 {[%clk 0:02:59]}  e6 {[%clk 0:03:00]} 3. Nc3 {[%clk 0:02:57]}  d5 {[%clk 0:03:00]} 4. cxd5 {[%clk 0:02:56]}  exd5 {[%clk 0:02:59]} 5. Bg5 {[%clk 0:02:55]}  c6 {[%clk 0:02:59]} 6. Qc2 {[%clk 0:02:54]}  Be7 {[%clk 0:02:59]} 7. e3 {[%clk 0:02:55]}  Nbd7 {[%clk 0:02:56]} 8. Bd3 {[%clk 0:02:55]}  O-O {[%clk 0:02:56]} 9. h3 {[%clk 0:02:54]}  Re8 {[%clk 0:02:57]} 10. Bf4 {[%clk 0:02:55]}  Nf8 {[%clk 0:02:52]} 11. Nf3 {[%clk 0:02:55]}  Be6 {[%clk 0:02:49]} 12. O-O-O {[%clk 0:02:50]}  Rc8 {[%clk 0:02:49]} 13. Kb1 {[%clk 0:02:49]}  b5 {[%clk 0:02:50]} 14. Rc1 {[%clk 0:02:48]}  Qa5 {[%clk 0:02:17]} 15. g4 {[%clk 0:02:44]}  c5 {[%clk 0:01:58]} 16. Bxb5 {[%clk 0:02:39]}  cxd4 {[%clk 0:01:55]} 17. Nxd4 {[%clk 0:02:37]}  Red8 {[%clk 0:01:40]} 18. Nc6 {[%clk 0:02:36]}  Rxc6 {[%clk 0:01:34]} 19. Bxc6 {[%clk 0:02:37]}  d4 {[%clk 0:01:27]} 20. Qa4 {[%clk 0:02:18]}  Qb6 {[%clk 0:01:09]} 21. Ne4 {[%clk 0:02:14]}  Nd5 {[%clk 0:00:45]} 22. Be5 {[%clk 0:01:49]}  dxe3 {[%clk 0:00:35]} 23. Bd4 {[%clk 0:01:49]}  Qb8 {[%clk 0:00:23]} 24. fxe3 {[%clk 0:01:49]}  Nb6 {[%clk 0:00:19]} 25. Qb5 {[%clk 0:01:37]}  Ng6 {[%clk 0:00:15]} 26. Rhd1 {[%clk 0:01:32]}  Rc8 {[%clk 0:00:11]} 27. Nc5 {[%clk 0:01:08]}  Bg5 {[%clk 0:00:10]} 28. Nxe6 {[%clk 0:01:05]}  fxe6 {[%clk 0:00:11]} 29. Qxg5 {[%clk 0:01:05]} 1-0


[Site "https://www.chess.com"]

[Event "Titled Tuesday Blitz June 21 Late 2022"]
[White "Postnikov, Daniil"]
[Black "Leiva, Gianmarco"]
[WhiteFideId "4166329"]
[BlackFideId "3804399"]
[WhiteElo "2261"]
[BlackElo "2323"]
[Result "0-1"]
[Round "06"]
[TimeControl "180+1"]
[Date "2022.06.21"]
[WhiteClock "0:00:02"]
[BlackClock "0:00:06"]

1. e4 {[%clk 0:03:00]}  c5 {[%clk 0:03:00]} 2. Nf3 {[%clk 0:03:01]}  d6 {[%clk 0:03:00]} 3. Bb5+ {[%clk 0:03:01]}  Nd7 {[%clk 0:03:00]} 4. d4 {[%clk 0:02:59]}  cxd4 {[%clk 0:02:59]} 5. Qxd4 {[%clk 0:03:00]}  a6 {[%clk 0:02:59]} 6. Bxd7+ {[%clk 0:03:01]}  Bxd7 {[%clk 0:03:00]} 7. c4 {[%clk 0:03:01]}  Nf6 {[%clk 0:02:59]} 8. Bg5 {[%clk 0:03:01]}  e6 {[%clk 0:03:00]} 9. Nc3 {[%clk 0:02:59]}  Be7 {[%clk 0:03:00]} 10. O-O {[%clk 0:03:00]}  O-O {[%clk 0:03:00]} 11. Qd3 {[%clk 0:03:00]}  h6 {[%clk 0:02:52]} 12. Bh4 {[%clk 0:02:52]}  Qa5 {[%clk 0:02:47]} 13. e5 {[%clk 0:02:36]}  dxe5 {[%clk 0:01:25]} 14. Bxf6 {[%clk 0:02:35]}  Bxf6 {[%clk 0:01:26]} 15. Qxd7 {[%clk 0:02:35]}  Qb4 {[%clk 0:01:26]} 16. Qa4 {[%clk 0:02:12]}  Qxa4 {[%clk 0:01:18]} 17. Nxa4 {[%clk 0:02:13]}  e4 {[%clk 0:01:19]} 18. Nd2 {[%clk 0:02:09]}  b5 {[%clk 0:01:19]} 19. Nb6 {[%clk 0:01:44]}  Rad8 {[%clk 0:01:13]} 20. Nxe4 {[%clk 0:01:42]}  Bd4 {[%clk 0:01:13]} 21. c5 {[%clk 0:01:33]}  f5 {[%clk 0:01:14]} 22. Nd6 {[%clk 0:01:28]}  Bxc5 {[%clk 0:01:04]} 23. Ndc8 {[%clk 0:01:19]}  Bxb6 {[%clk 0:01:03]} 24. Nxb6 {[%clk 0:01:18]}  Rd6 {[%clk 0:01:04]} 25. Rfd1 {[%clk 0:01:13]}  Rxb6 {[%clk 0:01:03]} 26. Rac1 {[%clk 0:01:14]}  Rf7 {[%clk 0:00:46]} 27. f4 {[%clk 0:01:09]}  Re7 {[%clk 0:00:44]} 28. Rc5 {[%clk 0:01:06]}  Kf7 {[%clk 0:00:43]} 29. b4 {[%clk 0:01:02]}  Kf6 {[%clk 0:00:43]} 30. Rd8 {[%clk 0:00:49]}  g5 {[%clk 0:00:23]} 31. g3 {[%clk 0:00:43]}  gxf4 {[%clk 0:00:17]} 32. gxf4 {[%clk 0:00:44]}  Rg7+ {[%clk 0:00:17]} 33. Kf2 {[%clk 0:00:44]}  Rg4 {[%clk 0:00:15]} 34. Kf3 {[%clk 0:00:44]}  Rb7 {[%clk 0:00:12]} 35. Rc6 {[%clk 0:00:39]}  Re7 {[%clk 0:00:04]} 36. Rxa6 {[%clk 0:00:31]}  Rh4 {[%clk 0:00:03]} 37. Rb8 {[%clk 0:00:25]}  Rh3+ {[%clk 0:00:03]} 38. Kg2 {[%clk 0:00:23]}  Rd3 {[%clk 0:00:03]} 39. Rxb5 {[%clk 0:00:21]}  Red7 {[%clk 0:00:03]} 40. Re5 {[%clk 0:00:19]}  Rd2+ {[%clk 0:00:03]} 41. Kf3 {[%clk 0:00:18]}  R7d3+ {[%clk 0:00:03]} 42. Re3 {[%clk 0:00:18]}  Rxe3+ {[%clk 0:00:03]} 43. Kxe3 {[%clk 0:00:19]}  Rxh2 {[%clk 0:00:04]} 44. b5 {[%clk 0:00:19]}  Rb2 {[%clk 0:00:04]} 45. b6 {[%clk 0:00:18]}  h5 {[%clk 0:00:04]} 46. a4 {[%clk 0:00:09]}  h4 {[%clk 0:00:04]} 47. a5 {[%clk 0:00:09]}  h3 {[%clk 0:00:05]} 48. Ra8 {[%clk 0:00:09]}  Kg7 {[%clk 0:00:05]} 49. Rd8 {[%clk 0:00:06]}  h2 {[%clk 0:00:04]} 50. Rd1 {[%clk 0:00:05]}  Rb5 {[%clk 0:00:05]} 51. Ra1 {[%clk 0:00:02]}  Rxa5 {[%clk 0:00:05]} 52. Rh1 {[%clk 0:00:01]}  Rb5 {[%clk 0:00:05]} 53. Rxh2 {[%clk 0:00:02]}  Rxb6 {[%clk 0:00:06]} 54. Rg2+ {[%clk 0:00:03]}  Kf6 {[%clk 0:00:06]} 55. Kd4 {[%clk 0:00:04]}  Rb4+ {[%clk 0:00:07]} 56. Ke3 {[%clk 0:00:05]}  Rb3+ {[%clk 0:00:08]} 57. Kd4 {[%clk 0:00:05]}  Rf3 {[%clk 0:00:08]} 58. Rf2 {[%clk 0:00:02]}  Rxf2 {[%clk 0:00:06]} 0-1


[Site "https://www.chess.com"]